bitfinex/quotes_SOLUSD_20260211
["timestamp","ask_amount","ask_price","bid_price","bid_amount"]
[1770780421574,19.1029296,83.28,83.246,48.1]
[1770780422383,19.1029296,83.28,83.247,48.1]
[1770780422780,0.52655518,83.3,83.251,0.55569569]
[1770780422966,19.1029296,83.31,83.261,0.55569569]
[1770780423284,0.52655518,83.309,83.27,18.57637442]
[1770780423476,0.52655518,83.309,83.271,48.12]
[1770780423677,18.57637442,83.31,83.272,0.55569569]
[1770780424488,18.57637442,83.31,83.273,12.00869429]
[1770780424680,0.52655518,83.309,83.273,12.00869429]
[1770780425070,0.52655518,83.289,83.271,48.12]
[1770780425372,0.52655518,83.299,83.271,48.12]
[1770780425569,12.00350502,83.309,83.26,12.01050979]
[1770780425570,0.52655518,83.289,83.26,48.1]
[1770780426688,0.52655518,83.289,83.254,48.12]
[1770780427184,49.52,83.324,83.254,48.12]
[1770780427185,19.1029296,83.3,83.261,0.55569569]
[1770780427880,12.00494603,83.299,83.261,0.55569569]
[1770780428185,0.52655518,83.298,83.261,0.55569569]
[1770780428789,0.52655518,83.298,83.261,12.5660038]
[1770780429285,0.52655518,83.298,83.262,0.55569569]
[1770780430871,0.52655518,83.298,83.263,12.01013655]
[1770780432195,0.52655518,83.296,83.263,12.01013655]
[1770780432893,0.52655518,83.305,83.266,0.55569569]
[1770780433670,30.00323702,83.325,83.265,42.03446825]
[1770780433671,0.52655518,83.299,83.265,42.03446825]
[1770780433988,0.52655518,83.299,83.266,48.2]
[1770780434695,0.52655518,83.299,83.265,12.00984807]
[1770780435773,0.52655518,83.299,83.265,12.56554376]
[1770780435976,0.52655518,83.299,83.266,0.55569569]
[1770780436176,0.52655518,83.297,83.265,12.00984807]
[1770780436677,0.52655518,83.297,83.259,12.01057837]
[1770780436872,0.52655518,83.289,83.257,48.24]
[1770780437285,0.52655518,83.289,83.261,12.01042504]
[1770780437486,0.52655518,83.289,83.262,0.55569569]
[1770780437795,0.52655518,83.289,83.263,12.01013655]
[1770780438389,0.52655518,83.299,83.264,0.55569569]
[1770780438694,0.52655518,83.299,83.271,0.55569569]
[1770780439397,0.52655518,83.319,83.281,0.55569569]
[1770780439691,0.52655518,83.327,83.282,0.55569569]
[1770780439884,0.52655518,83.325,83.284,0.55569569]
[1770780440588,0.52655518,83.325,83.286,0.93151838]
[1770780440895,12.00105609,83.326,83.285,48.26]
[1770780440896,0.95247322,83.309,83.285,48.26]
[1770780441279,0.95247322,83.325,83.291,0.93151838]
[1770780443103,0.95247322,83.319,83.291,0.93151838]
[1770780443485,0.95247322,83.319,83.291,12.93759174]
[1770780443797,0.95247322,83.319,83.288,48.28]
[1770780444001,0.95247322,83.319,83.289,12.00635242]
[1770780444882,0.95247322,83.319,83.293,1.00910547]
[1770780445084,0.95247322,83.319,83.294,12.00566667]
[1770780445284,1.04731469,83.327,83.301,1.00910547]
[1770780446101,1.04731469,83.327,83.294,12.00566667]
[1770780446406,1.04731469,83.327,83.293,1.00910547]
[1770780446407,1.04731469,83.319,83.28,18.57637442]
[1770780446611,1.04731469,83.319,83.28,66.89637442]
[1770780446831,1.04731469,83.319,83.281,1.00910547]
[1770780446991,1.04731469,83.319,83.283,12.00723099]
[1770780447190,1.04731469,83.319,83.283,1.00910547]
[1770780447914,1.04731469,83.319,83.284,48.34]
[1770780448299,1.04731469,83.319,83.284,49.34910547]
[1770780449022,1.04731469,83.317,83.284,49.34910547]
[1770780449394,49.2,83.339,83.265,12.00970938]
[1770780449395,1.04731469,83.299,83.265,12.00970938]
[1770780449714,1.04731469,83.289,83.265,12.00970938]
[1770780450419,1.04731469,83.289,83.26,12.01053083]
[1770780450594,1.04731469,83.289,83.257,48.36]
[1770780450792,1.04731469,83.289,83.26,12.01050492]
[1770780451016,18.57637442,83.29,83.26,12.01050492]
[1770780451395,12.0078291,83.279,83.247,1.00910547]
[1770780452894,1.04731469,83.31,83.261,1.00910547]
[1770780453093,49.14,83.311,83.248,12.01230059]
[1770780453094,1.04731469,83.289,83.251,1.00910547]
[1770780453506,1.04731469,83.287,83.253,1.00910547]
[1770780454519,1.04731469,83.287,83.253,49.38910547]
[1770780454730,1.04731469,83.287,83.254,1.00910547]
[1770780455526,1.04731469,83.287,83.256,1.00910547]
[1770780455903,1.04731469,83.285,83.256,1.00910547]
[1770780456823,1.04731469,83.285,83.255,12.01129061]
[1770780457605,1.04731469,83.279,83.253,48.38]
[1770780457806,1.04731469,83.279,83.248,1.00910547]
[1770780458212,1.04731469,83.279,83.238,48.42]
[1770780458512,1.04731469,83.269,83.241,12.01327764]
[1770780459227,1.04731469,83.269,83.235,12.01407497]
[1770780459432,1.04731469,83.269,83.239,12.01352011]
[1770780460433,1.04731469,83.269,83.232,12.01460976]
[1770780460727,12.00941538,83.268,83.233,1.00910547]
[1770780461030,1.04731469,83.267,83.233,1.00910547]
[1770780462733,1.04731469,83.265,83.232,12.01460976]
[1770780463114,1.04731469,83.265,83.234,12.01432107]
[1770780465032,1.04731469,83.263,83.231,1.00910547]
[1770780465238,1.04731469,83.263,83.226,48.46]
[1770780465438,1.04731469,83.259,83.226,48.46]
[1770780465621,1.04731469,83.259,83.226,49.46910547]
[1770780466337,1.04731469,83.259,83.226,1.00910547]
[1770780467129,1.04731469,83.257,83.226,1.00910547]
[1770780468629,1.04731469,83.255,83.226,1.00910547]
[1770780469130,1.04731469,83.255,83.22,18.67427723]
[1770780469525,1.04731469,83.255,83.22,19.6833827]
[1770780469733,1.04731469,83.255,83.224,1.00910547]
[1770780469933,1.04731469,83.255,83.22,18.67427723]
[1770780470132,1.26328841,83.246,83.221,1.2519195]
[1770780470339,1.26328841,83.246,83.22,0.1]
[1770780470841,1.26328841,83.244,83.22,0.1]
[1770780471519,18.57427723,83.25,83.22,18.67427723]
[1770780471724,12.01184938,83.252,83.231,1.2519195]
[1770780472737,1.26328841,83.251,83.221,12.01607]
[1770780472942,18.57427723,83.25,83.22,1.3519195]
[1770780473145,1.26328841,83.249,83.22,1.3519195]
[1770780473434,1.26328841,83.249,83.221,1.2519195]
[1770780473631,1.26328841,83.249,83.222,1.2519195]
[1770780477223,1.26328841,83.249,83.22,18.67427723]
[1770780477224,13.27297414,83.267,83.231,1.2519195]
[1770780477428,1.26328841,83.266,83.231,1.2519195]
[1770780477632,1.26328841,83.259,83.224,1.2519195]
[1770780478334,18.57427723,83.25,83.224,1.2519195]
[1770780478539,91.25358475,83.267,83.22,12.11633121]
[1770780478540,1.26328841,83.239,83.22,0.1]
[1770780479345,1.26328841,83.229,83.202,12.01887995]
[1770780479941,1.26328841,83.229,83.197,12.01965322]
[1770780480244,1.26328841,83.229,83.172,5.13032502]
[1770780480245,1.26328841,83.209,83.174,1.2519195]
[1770780480448,1.26328841,83.189,83.163,12.02447852]
[1770780480655,1.26328841,83.189,83.168,12.02377151]
[1770780480950,18.57427723,83.19,83.168,12.02377151]
[1770780481530,18.57427723,83.19,83.17,1.3519195]
[1770780482133,1.26328841,83.194,83.17,0.1]
[1770780482352,18.57427723,83.19,83.17,0.1]
[1770780482650,19.83756564,83.19,83.17,0.1]
[1770780482835,1.26328841,83.19,83.17,0.1]
[1770780483438,1.26328841,83.199,83.17,1.3519195]
[1770780483947,18.57427723,83.2,83.17,1.3519195]
[1770780484327,18.57427723,83.2,83.172,1.2519195]
[1770780487155,49.26,83.209,83.174,1.2519195]
[1770780487333,18.57427723,83.21,83.174,1.2519195]
[1770780488255,18.57427723,83.21,83.176,1.2519195]
[1770780488458,12.01763195,83.212,83.176,1.2519195]
[1770780488748,18.57427723,83.22,83.181,1.2519195]
[1770780489341,1.26328841,83.218,83.181,1.2519195]
[1770780489540,18.57427723,83.21,83.181,1.2519195]
[1770780489738,1.26328841,83.218,83.181,1.2519195]
[1770780490257,18.57427723,83.21,83.183,1.2519195]
[1770780491146,19.83756564,83.21,83.183,1.2519195]
[1770780491846,1.26328841,83.219,83.183,1.2519195]
[1770780492353,1.26328841,83.219,83.185,1.2519195]
[1770780493051,1.26328841,83.217,83.185,1.2519195]
[1770780494151,1.26328841,83.209,83.185,1.2519195]
[1770780494355,1.26328841,83.207,83.178,1.2519195]
[1770780494545,1.26328841,83.199,83.176,12.0225571]
[1770780494751,1.26328841,83.199,83.176,13.2744766]
[1770780495048,1.26328841,83.199,83.18,12.02207514]
[1770780495549,18.57427723,83.22,83.185,1.2519195]
[1770780495756,18.57427723,83.22,83.187,1.2519195]
[1770780496339,19.83756564,83.22,83.187,1.2519195]
[1770780496637,1.26328841,83.219,83.189,1.2519195]
[1770780498154,1.26328841,83.218,83.189,1.2519195]
[1770780498748,1.26328841,83.218,83.191,1.2519195]
[1770780501264,1.51489269,83.227,83.193,1.48705935]
[1770780503075,6.25127141,83.22,83.193,1.48705935]
[1770780503444,6.25127141,83.22,83.195,1.48705935]
[1770780504273,49.42,83.228,83.195,1.48705935]
[1770780504872,0.2,83.32,83.194,42.0703416]
[1770780504873,1.57081031,83.251,83.211,1.4767828]
[1770780505172,1.57081031,83.251,83.221,1.4767828]
[1770780505459,1.57081031,83.249,83.221,1.4767828]
[1770780505764,1.57081031,83.249,83.222,12.01605344]
[1770780505951,1.57081031,83.239,83.201,1.4767828]
[1770780506262,1.57081031,83.239,83.209,12.01791984]
[1770780507168,1.57081031,83.239,83.212,12.0173753]
[1770780507757,1.57081031,83.239,83.208,12.01807518]
[1770780508450,1.57081031,83.229,83.202,12.01892879]
[1770780508859,1.57081031,83.229,83.172,16.03232214]
[1770780508860,1.57081031,83.219,83.184,1.4767828]
[1770780509758,1.57081031,83.219,83.191,12.02042877]
[1770780509961,1.57081031,83.219,83.186,1.4767828]
[1770780510348,1.57081031,83.209,83.179,1.4767828]
[1770780510847,49.38,83.209,83.172,1.4767828]
[1770780511050,1.57081031,83.208,83.177,12.02247716]
[1770780511742,1.57081031,83.208,83.181,12.02190254]
[1770780511942,1.57081031,83.208,83.174,1.4767828]
[1770780512370,6.25127141,83.2,83.174,1.4767828]
[1770780512667,7.82208172,83.2,83.174,1.4767828]
[1770780512869,1.57081031,83.199,83.174,1.4767828]
[1770780513768,1.57081031,83.208,83.174,1.4767828]
[1770780514466,1.57081031,83.208,83.173,12.0231325]
[1770780514467,1.57081031,83.208,83.181,1.4767828]
[1770780514674,1.57081031,83.207,83.181,1.4767828]
[1770780516670,1.57081031,83.207,83.183,1.4767828]
[1770780519169,1.57081031,83.207,83.185,1.4767828]
[1770780521159,1.57081031,83.207,83.187,1.4767828]
[1770780521470,49.46,83.216,83.17,1.5767828]
[1770780521471,1.57081031,83.199,83.17,1.5767828]
[1770780521857,1.57081031,83.199,83.173,1.4767828]
[1770780522779,1.57081031,83.199,83.181,12.02184455]
[1770780523066,61.53772734,83.211,83.182,1.4767828]
[1770780523765,63.10853765,83.211,83.182,1.4767828]
[1770780523971,63.10853765,83.211,83.183,1.4767828]
[1770780524554,1.57081031,83.209,83.177,12.02251704]
[1770780524755,1.57081031,83.199,83.171,12.02337965]
[1770780525055,1.57081031,83.199,83.171,13.50016245]
[1770780525680,1.57081031,83.202,83.176,1.4767828]
[1770780525875,1.57081031,83.2,83.176,1.4767828]
[1770780527079,1.57081031,83.198,83.17,0.1]
[1770780527381,1.57081031,83.196,83.17,0.1]
[1770780527975,1.57081031,83.196,83.171,1.4767828]
[1770780528181,49.6,83.199,83.171,1.4767828]
[1770780528477,1.57081031,83.198,83.171,1.4767828]
[1770780529182,1.57081031,83.198,83.173,1.4767828]
[1770780529680,13.58669754,83.224,83.191,1.4767828]
[1770780529981,1.57081031,83.219,83.191,1.4767828]
[1770780531275,1.59829868,83.217,83.191,13.49722456]
[1770780532266,1.59829868,83.217,83.191,1.4767828]
[1770780532861,1.59829868,83.209,83.182,1.61599584]
[1770780533060,1.59829868,83.209,83.177,12.02254801]
[1770780533383,1.59829868,83.209,83.174,13.63898379]
[1770780533559,1.59829868,83.207,83.175,1.61599584]
[1770780533757,6.25278298,83.2,83.175,1.61599584]
[1770780533971,6.25278298,83.19,83.17,0.1]
[1770780534281,1.59829868,83.189,83.17,0.1]
[1770780536476,30.04518796,83.208,83.17,0.1]
[1770780536477,1.59829868,83.206,83.171,1.61599584]
[1770780536779,1.59829868,83.206,83.181,1.61599584]
[1770780537785,1.59829868,83.214,83.181,1.61599584]
[1770780538388,1.59829868,83.209,83.182,12.02183164]
[1770780539184,1.59829868,83.209,83.183,1.61599584]
[1770780539790,6.25278298,83.23,83.201,1.61599584]
[1770780539967,1.59829868,83.228,83.201,1.61599584]
[1770780540284,1.59829868,83.219,83.191,1.61599584]
[1770780540467,1.59829868,83.219,83.184,42.07539911]
[1770780540468,1.59829868,83.219,83.184,12.0215426]
[1770780540866,1.59829868,83.219,83.184,13.63753844]
[1770780541067,1.59829868,83.219,83.191,1.61599584]
[1770780541472,1.59829868,83.226,83.191,1.61599584]
[1770780541673,1.59829868,83.224,83.193,1.61599584]
[1770780541871,1.59829868,83.248,83.211,1.61599584]
[1770780542086,1.59829868,83.248,83.22,7.86877882]
[1770780542292,51.23829868,83.257,83.231,1.61599584]
[1770780542801,12.01114634,83.256,83.231,1.61599584]
[1770780544067,13.60944502,83.256,83.231,1.61599584]
[1770780544268,1.59829868,83.255,83.224,12.01564253]
[1770780544468,1.59829868,83.255,83.224,13.63163837]
[1770780544664,1.59829868,83.255,83.224,1.61599584]
[1770780544883,1.59829868,83.249,83.211,48.48]
[1770780545382,1.59829868,83.239,83.203,1.61599584]
[1770780546184,1.59829868,83.237,83.203,1.61599584]
[1770780547190,1.59829868,83.237,83.205,1.61599584]
[1770780548891,1.59829868,83.235,83.205,1.61599584]
[1770780550494,1.59829868,83.235,83.207,1.61599584]
[1770780550671,49.64,83.242,83.211,1.61599584]
[1770780550989,1.59829868,83.24,83.213,1.61599584]
[1770780551186,1.59829868,83.24,83.195,30.04963275]
[1770780551187,1.59829868,83.239,83.204,1.61599584]
[1770780551370,1.59829868,83.219,83.191,0.3]
[1770780551566,1.59829868,83.219,83.189,1.61599584]
[1770780551567,1.59829868,83.219,83.192,0.3]
[1770780552580,1.59829868,83.219,83.192,1.91599584]
[1770780552889,1.59829868,83.219,83.193,12.02024208]
[1770780553191,1.59829868,83.229,83.201,1.61599584]
[1770780553374,1.59829868,83.229,83.2,6.25278298]
[1770780553787,1.59829868,83.229,83.194,1.61599584]
[1770780554790,1.59829868,83.227,83.194,1.61599584]
[1770780554990,1.59829868,83.219,83.191,0.3]
[1770780555494,1.59829868,83.219,83.193,12.02023872]
[1770780555885,1.59829868,83.219,83.191,0.3]
[1770780556200,1.59829868,83.219,83.191,1.61599584]
[1770780556696,1.59829868,83.209,83.178,1.61599584]
[1770780556900,1.59829868,83.217,83.191,13.63641]
[1770780557101,1.59829868,83.224,83.192,1.61599584]
[1770780558092,1.59829868,83.224,83.191,12.02041416]
[1770780558093,12.01477945,83.231,83.201,1.61599584]
[1770780558303,1.59829868,83.229,83.201,1.61599584]
[1770780559298,1.59829868,83.254,83.211,1.61599584]
[1770780559502,1.59829868,83.249,83.211,1.61599584]
[1770780559682,1.59829868,83.249,83.221,1.61599584]
[1770780560402,13.78878778,83.248,83.221,1.61599584]
[1770780560995,1.77645022,83.247,83.221,1.61599584]
[1770780561597,1.77645022,83.255,83.223,1.7104928]
[1770780563701,1.77645022,83.255,83.225,1.7104928]
[1770780564093,12.01143488,83.254,83.225,1.7104928]
[1770780564301,1.67090787,83.249,83.225,1.7104928]
[1770780564500,1.67090787,83.249,83.216,1.68179584]
[1770780567609,6.25048145,83.23,83.206,48.36]
[1770780567792,1.67090787,83.229,83.204,13.70037268]
[1770780568703,1.67090787,83.229,83.205,1.68179584]
[1770780569488,1.67090787,83.229,83.204,12.01857684]
[1770780570196,1.67090787,83.229,83.204,13.70037268]
[1770780571009,1.67090787,83.219,83.196,1.68179584]
[1770780571402,1.67090787,83.219,83.197,1.68179584]
[1770780571816,1.67090787,83.219,83.191,13.7023269]
[1770780571999,1.67090787,83.219,83.192,1.68179584]
[1770780572838,1.67090787,83.219,83.193,12.02024208]
[1770780573116,1.67090787,83.219,83.194,1.68179584]
[1770780576212,1.67090787,83.217,83.194,1.68179584]
[1770780576901,1.67090787,83.217,83.196,1.68179584]
[1770780582618,1.67090787,83.217,83.198,1.68179584]
[1770780584005,1.67090787,83.217,83.192,14.00207543]
[1770780584221,1.67090787,83.217,83.193,1.68179584]
[1770780585032,1.67090787,83.215,83.192,0.3]
[1770780585237,1.67090787,83.209,83.192,0.3]
[1770780585403,12.01691982,83.216,83.17,36.40913858]
[1770780585404,1.67090787,83.199,83.173,1.68179584]
[1770780587213,1.67090787,83.199,83.173,12.02302145]
[1770780587416,1.67090787,83.199,83.174,1.68179584]
[1770780587827,1.67090787,83.198,83.174,1.68179584]
[1770780588019,1.67090787,83.198,83.17,0.1]
[1770780589210,6.25039065,83.2,83.17,0.1]
[1770780589211,1.67090787,83.196,83.17,0.1]
[1770780590521,1.79590094,83.194,83.17,0.1]
[1770780591724,1.79590094,83.189,83.17,0.1]
[1770780593029,1.79590094,83.187,83.17,0.1]
[1770780597829,6.25039065,83.19,83.17,0.1]
[1770780597830,1.79590094,83.185,83.17,0.1]
[1770780598633,1.79590094,83.179,83.16,0.1]
[1770780598817,1.79590094,83.169,83.16,0.1]
[1770780599126,6.25039065,83.17,83.16,0.1]
[1770780599821,49.9,83.182,83.16,0.1]
[1770780600144,8.04629159,83.18,83.161,1.76922418]
[1770780600343,8.04629159,83.18,83.135,30.07143496]
[1770780600344,1.79590094,83.169,83.128,12.02952036]
[1770780600632,1.79590094,83.139,83.111,1.76922418]
[1770780600834,1.79590094,83.138,83.111,1.76922418]
[1770780601134,4.17622889,83.13,83.111,1.76922418]
[1770780601610,49.94,83.14,83.113,1.76922418]
[1770780601611,54.11622889,83.14,83.113,1.76922418]
[1770780601811,4.17622889,83.15,83.121,1.76922418]
[1770780602032,49.94,83.156,83.121,1.76922418]
[1770780602237,13.82115387,83.159,83.121,1.76922418]
[1770780602538,4.17622889,83.15,83.121,1.76922418]
[1770780604232,1.79590094,83.158,83.123,1.76922418]
[1770780605364,1.79590094,83.149,83.123,1.76922418]
[1770780606262,1.79590094,83.139,83.111,1.76922418]
[1770780606853,4.17622889,83.14,83.111,1.76922418]
[1770780607344,1.79590094,83.139,83.113,1.76922418]
[1770780608063,1.79590094,83.139,83.1,1.86922418]
[1770780608064,1.79590094,83.129,83.1,1.86922418]
[1770780608241,1.79590094,83.12,83.1,1.86922418]
[1770780608440,1.79590094,83.129,83.1,1.86922418]
[1770780609151,1.79590094,83.129,83.103,12.03325049]
[1770780609472,4.17622889,83.13,83.104,1.76922418]
[1770780609641,12.02949632,83.129,83.104,1.76922418]
[1770780610041,13.82539726,83.129,83.104,1.76922418]
[1770780610470,1.79590094,83.128,83.104,1.76922418]
[1770780611442,12.02874769,83.135,83.104,1.76922418]
[1770780611637,1.79590094,83.134,83.104,1.76922418]
[1770780611852,4.17622889,83.13,83.104,1.76922418]
[1770780612352,4.17622889,83.13,83.1,0.1]
[1770780612353,4.17622889,83.13,83.106,1.76922418]
[1770780612756,13.82452907,83.135,83.108,1.76922418]
[1770780613070,1.79590094,83.134,83.108,1.76922418]
[1770780613268,49.96,83.136,83.108,1.76922418]
[1770780613269,4.17622889,83.13,83.108,1.76922418]
[1770780613570,1.79590094,83.129,83.108,1.76922418]
[1770780614647,4.17622889,83.14,83.108,1.76922418]
[1770780614851,4.17622889,83.14,83.1,4.27622889]
[1770780614852,4.17622889,83.15,83.111,1.76922418]
[1770780615061,62.0262537,83.152,83.109,42.11336918]
[1770780615062,50.0,83.152,83.121,1.76922418]
[1770780615370,4.17622889,83.16,83.121,1.76922418]
[1770780615880,51.79590094,83.168,83.109,102.27532516]
[1770780615881,50.0,83.168,83.141,1.76922418]
[1770780616049,50.0,83.168,83.109,150.40488994]
[1770780616050,50.0,83.195,83.151,1.76922418]
[1770780616369,12.01937523,83.199,83.151,1.76922418]
[1770780616370,5.97212983,83.19,83.151,1.76922418]
[1770780616568,1.79590094,83.197,83.151,1.76922418]
[1770780616762,4.17622889,83.19,83.163,1.76922418]
[1770780616963,4.17622889,83.18,83.153,1.76922418]
[1770780617455,1.79590094,83.179,83.153,1.76922418]
[1770780617654,4.17622889,83.17,83.153,1.76922418]
[1770780617964,4.17622889,83.19,83.131,1.76922418]
[1770780617965,1.79590094,83.159,83.131,1.76922418]
[1770780618868,1.79590094,83.139,83.111,1.76922418]
[1770780619048,1.79590094,83.139,83.114,1.76922418]
[1770780619545,92.06855431,83.158,83.121,1.76922418]
[1770780619546,62.00530123,83.158,83.121,1.76922418]
[1770780619749,4.17622889,83.16,83.121,1.76922418]
[1770780620066,49.98,83.172,83.141,1.76922418]
[1770780620260,5.97212983,83.18,83.141,1.76922418]
[1770780620567,1.78441683,83.188,83.151,1.73745454]
[1770780620757,1.78441683,83.188,83.153,1.73745454]
[1770780621153,13.80543647,83.188,83.153,1.73745454]
[1770780622354,13.80543647,83.188,83.155,1.73745454]
[1770780622754,1.78441683,83.187,83.155,1.73745454]
[1770780623169,1.78441683,83.179,83.155,1.73745454]
[1770780624069,1.78441683,83.179,83.14,60.83192048]
[1770780624070,1.78441683,83.179,83.148,1.76460209]
[1770780624267,1.75228239,83.186,83.151,1.76460209]
[1770780625359,12.41192048,83.18,83.155,1.76460209]
[1770780627273,12.02139808,83.185,83.155,1.76460209]
[1770780627678,12.02168712,83.183,83.155,1.76460209]
[1770780627978,13.77396951,83.183,83.155,1.76460209]
[1770780628184,12.02050381,83.192,83.161,1.76460209]
[1770780628370,12.01903083,83.202,83.171,1.76460209]
[1770780628858,1.75228239,83.201,83.171,1.76460209]
[1770780629253,1.75228239,83.199,83.171,1.76460209]
[1770780629770,1.75228239,83.197,83.162,1.76460209]
[1770780631872,1.75228239,83.197,83.164,1.76460209]
[1770780632073,1.75228239,83.189,83.157,1.76460209]
[1770780632277,1.75228239,83.189,83.15,12.41192048]
[1770780632278,12.41192048,83.2,83.161,1.76460209]
[1770780632481,48.04338496,83.259,83.132,101.3626783]
[1770780632482,12.41192048,83.21,83.171,1.76460209]
[1770780632659,1.75228239,83.208,83.171,1.76460209]
[1770780633877,12.01821962,83.207,83.172,12.02327706]
[1770780634178,1.75228239,83.206,83.173,1.76460209]
[1770780634374,1.75228239,83.199,83.173,1.76460209]
[1770780638780,1.75228239,83.197,83.173,1.76460209]
[1770780639274,1.75228239,83.21,83.181,1.76460209]
[1770780639684,50.0,83.214,83.183,1.76460209]
[1770780639685,62.01723686,83.214,83.183,1.76460209]
[1770780640066,62.01723686,83.214,83.191,1.76460209]
[1770780641388,1.75228239,83.209,83.183,1.76460209]
[1770780641684,1.75228239,83.209,83.179,1.76460209]
[1770780641887,1.75228239,83.209,83.178,12.02239106]
[1770780642088,1.75228239,83.199,83.173,0.3]
[1770780642269,1.75228239,83.199,83.172,1.76460209]
[1770780642472,1.75228239,83.199,83.174,12.02295837]
[1770780642784,1.75228239,83.199,83.175,1.76460209]
[1770780643293,1.75228239,83.199,83.17,12.40672245]
[1770780643294,1.75228239,83.199,83.177,1.76460209]
[1770780643477,1.75228239,83.213,83.181,1.76460209]
[1770780644292,12.01760316,83.212,83.181,1.76460209]
[1770780644979,1.75228239,83.211,83.183,1.76460209]
[1770780645686,1.75228239,83.209,83.183,1.76460209]
[1770780645990,1.75228239,83.209,83.181,0.3]
[1770780647083,1.75228239,83.209,83.183,1.76460209]
[1770780647385,50.12,83.222,83.183,1.76460209]
[1770780647386,1.75228239,83.215,83.183,1.76460209]
[1770780648293,1.75228239,83.215,83.192,12.02038657]
[1770780648671,1.75228239,83.215,83.193,1.76460209]
[1770780651694,1.75228239,83.215,83.19,4.16718694]
[1770780651695,1.77405449,83.231,83.201,1.72536876]
[1770780651994,1.77405449,83.237,83.211,1.72536876]
[1770780652173,1.77405449,83.237,83.194,42.0703416]
[1770780652174,12.01113712,83.257,83.221,1.72536876]
[1770780652373,13.78519161,83.257,83.231,1.72536876]
[1770780654487,1.77405449,83.256,83.225,1.72536876]
[1770780654672,1.77405449,83.249,83.22,4.16718694]
[1770780654875,12.01113712,83.257,83.217,1.72536876]
[1770780654876,1.77405449,83.239,83.217,1.72536876]
[1770780655702,1.77405449,83.239,83.172,48.09264295]
[1770780655703,1.77405449,83.249,83.223,1.72536876]
[1770780656609,1.77405449,83.249,83.227,1.72536876]
[1770780656788,1.77405449,83.256,83.227,1.72536876]
[1770780657597,50.14,83.258,83.231,1.72536876]
[1770780657986,1.77405449,83.27,83.241,1.72536876]
[1770780658696,1.77405449,83.27,83.243,1.72536876]
[1770780659002,1.77405449,83.27,83.226,48.3]
[1770780659003,1.77405449,83.259,83.221,1.72536876]
[1770780659178,1.77405449,83.249,83.224,1.72536876]
[1770780659374,1.77405449,83.239,83.216,12.01681135]
[1770780660190,1.77405449,83.239,83.216,13.74218011]
[1770780660589,1.77405449,83.239,83.217,1.72536876]
[1770780661281,4.16145227,83.25,83.221,1.72536876]
[1770780661481,50.14,83.251,83.221,1.72536876]
[1770780661680,1.77405449,83.25,83.221,1.72536876]
[1770780662477,1.77405449,83.261,83.231,1.72536876]
[1770780662700,50.14,83.262,83.231,1.72536876]
[1770780663103,50.14,83.262,83.241,1.72536876]
[1770780663283,1.77405449,83.261,83.241,1.72536876]
[1770780663904,1.77405449,83.261,83.231,1.72536876]
[1770780664205,1.77405449,83.259,83.224,1.72536876]
[1770780665784,50.14,83.262,83.231,1.72536876]
[1770780665982,12.01042504,83.261,83.231,1.72536876]
[1770780666283,50.14,83.262,83.231,1.72536876]
[1770780666884,50.14,83.262,83.241,1.72536876]
[1770780667399,1.77405449,83.267,83.241,1.72536876]
[1770780668404,1.77405449,83.267,83.242,1.72536876]
[1770780669599,50.16,83.277,83.244,1.72536876]
[1770780669600,1.77405449,83.274,83.244,1.72536876]
[1770780671407,1.77405449,83.274,83.24,4.16145227]
[1770780671585,1.77405449,83.269,83.236,1.72536876]
[1770780672304,1.77405449,83.273,83.246,1.72536876]
[1770780673693,1.77405449,83.271,83.246,1.72536876]
[1770780673993,1.77405449,83.269,83.24,16.17476514]
[1770780674394,1.77405449,83.269,83.241,1.72536876]
[1770780674590,1.77405449,83.269,83.244,12.01287369]
[1770780674794,1.77405449,83.269,83.245,1.72536876]
[1770780675003,54.32145227,83.28,83.251,1.72536876]
[1770780675004,50.16,83.28,83.251,1.72536876]
[1770780675189,12.0068948,83.286,83.26,4.16145227]
[1770780675389,12.0068948,83.286,83.261,1.72536876]
[1770780675701,1.77405449,83.289,83.263,1.72536876]
[1770780675904,0.2,83.3,83.281,1.72536876]
[1770780676888,0.2,83.31,83.292,1.72536876]
[1770780677089,0.2,83.32,83.301,1.72536876]
[1770780677400,0.2,83.32,83.311,1.72536876]
[1770780678106,11.99992361,83.334,83.31,4.16145227]
[1770780678107,5.93550676,83.34,83.313,1.72536876]
[1770780678312,1.97405449,83.33,83.308,1.72536876]
[1770780678522,0.2,83.33,83.311,1.72536876]
[1770780679009,0.2,83.33,83.296,1.72536876]
[1770780679010,1.77405449,83.328,83.296,1.72536876]
[1770780679311,1.77405449,83.328,83.299,12.00486582]
[1770780680207,1.77405449,83.328,83.3,1.84710081]
[1770780680416,1.69737849,83.326,83.3,1.84710081]
[1770780681402,1.69737849,83.326,83.301,13.85175861]
[1770780681619,12.56600928,83.33,83.302,1.84710081]
[1770780681788,0.2,83.33,83.311,1.84710081]
[1770780682918,1.89737849,83.33,83.304,1.84710081]
[1770780683294,1.69737849,83.329,83.291,48.2]